bitfinex/quotes_BTCUSD_20220105
["timestamp","ask_amount","ask_price","bid_price","bid_amount"]
[1641412172515,2.31806,44946.0,44945.0,0.00011]
[1641412172763,2.27,44949.0,44931.0,0.00279]
[1641412172764,0.03506383,44942.0,44931.0,0.00202]
[1641412173069,1.21267,44941.0,44932.0,0.25459751]
[1641412173264,1.21267,44941.0,44933.0,0.362386]
[1641412173265,0.05556,44941.0,44933.0,0.362386]
[1641412173465,0.03608,44941.0,44933.0,0.362386]
[1641412173666,0.03581872,44941.0,44932.0,0.25459751]
[1641412173865,0.66649,44946.0,44935.0,0.2]
[1641412174066,0.66649,44946.0,44942.0,0.2]
[1641412174067,0.05567,44945.0,44942.0,0.2]
[1641412174269,0.64701,44946.0,44941.0,0.43567442]
[1641412174270,0.26009444,44967.0,44946.0,2.14]
[1641412174466,0.004,44999.0,44948.0,0.2]
[1641412174467,1.157,44968.0,44948.0,0.2]
[1641412174670,0.51988312,44983.0,44947.0,0.97045458]
[1641412174671,0.51988312,44983.0,44950.0,0.2]
[1641412174869,0.13329034,44972.0,44952.0,0.2]
[1641412175067,0.13329034,44972.0,44960.0,0.255581]
[1641412175068,0.05567,44968.0,44960.0,0.255581]
[1641412175267,1.5187,44968.0,44965.0,0.3285]
[1641412175466,0.51988312,44996.0,44985.0,0.2180643]
[1641412175668,0.54733,44988.0,44985.0,0.2180643]
[1641412175867,0.54733,44988.0,44985.0,0.2556643]
[1641412176070,0.51988312,44996.0,44987.0,2.27]
[1641412176267,0.31988312,44996.0,44991.0,0.362386]
[1641412176538,0.62009263,44998.0,44996.0,0.75]
[1641412176721,0.23855443,45040.0,44996.0,0.75]
[1641412176722,0.5186922,45010.0,44998.0,0.388946]
[1641412176922,0.5186922,45010.0,45002.0,0.362386]
[1641412177120,0.5186922,45010.0,45007.0,0.16240833]
[1641412177322,0.2186922,45010.0,45008.0,0.0376]
[1641412177520,0.36269403,45014.0,45013.0,2.47]
[1641412177722,0.0555,45058.0,45018.0,1.98555]
[1641412177922,0.31583552,45061.0,45027.0,0.2424977]
[1641412177923,0.20483252,45061.0,45027.0,0.2424977]
[1641412178123,0.73124403,45042.0,45027.0,0.31862698]
[1641412178326,1.3375,45028.0,45027.0,0.21195718]
[1641412178523,1.2375,45028.0,45027.0,0.0376]
[1641412178723,0.774031,45028.0,45027.0,0.0376]
[1641412178924,0.362386,45027.0,45007.0,0.0376]
[1641412179124,0.26624411,45020.0,45014.0,1.13601446]
[1641412179323,0.24154467,45020.0,45014.0,0.44183053]
[1641412179527,0.1771,45034.0,45017.0,0.33280016]
[1641412179528,1.11407,45029.0,45017.0,0.33280016]
[1641412179825,0.67897,45019.0,44995.0,0.27956858]
[1641412180024,0.67897,45019.0,44985.0,1.41173666]
[1641412180025,0.055561,45008.0,44985.0,1.41173666]
[1641412180273,0.055561,45008.0,44986.0,0.27956858]
[1641412180274,2.27,44995.0,44986.0,0.27956858]
[1641412180476,0.78172,44994.0,44981.0,0.004]
[1641412180675,0.78172,44994.0,44987.0,4.100046]
[1641412180676,0.36306088,44990.0,44987.0,4.100046]
[1641412180872,0.36306088,44990.0,44982.0,7.327645]
[1641412180873,1.01769512,44989.0,44982.0,7.327645]
[1641412181078,1.18455012,44989.0,44982.0,3.046133]
[1641412181273,0.362386,44985.0,44962.0,0.00039099]
[1641412181487,0.362386,44985.0,44979.0,0.00011]
[1641412181488,0.66641,44984.0,44979.0,0.00011]
[1641412181674,0.001516,44980.0,44979.0,0.00011]
[1641412181898,0.362373,44980.0,44979.0,0.00011]
[1641412182075,0.362373,44980.0,44962.0,0.00039099]
[1641412182076,0.462373,44980.0,44962.0,0.00039099]
[1641412182272,0.20277936,44979.0,44962.0,0.00039099]
[1641412182473,0.362373,44975.0,44962.0,0.00039099]
[1641412182674,0.362373,44975.0,44941.0,0.00411]
[1641412182675,2.33256,44970.0,44941.0,0.00411]
[1641412182973,2.33256,44970.0,44951.0,0.15087299]
[1641412182974,2.27,44958.0,44951.0,0.15087299]
[1641412183275,2.27,44958.0,44941.0,0.00410927]
[1641412183276,0.111305,44949.0,44941.0,0.00410927]
[1641412183474,0.13390909,44942.0,44941.0,0.00410927]
[1641412183774,0.13390909,44942.0,44940.0,0.00011]
[1641412183775,1.076299,44942.0,44940.0,0.00011]
[1641412184023,0.362373,44940.0,44938.0,0.00022]
[1641412184217,0.362263,44939.0,44938.0,0.00022]
[1641412184417,0.412263,44939.0,44938.0,0.00011]
[1641412184618,0.412263,44939.0,44928.0,0.00022]
[1641412184619,0.312002,44938.0,44936.0,0.1]
[1641412184818,1.56,44941.0,44936.0,0.1]
[1641412184819,1.25,44941.0,44937.0,0.45957484]
[1641412185018,1.20541475,44941.0,44940.0,2.37]
[1641412185221,0.83807052,44960.0,44957.0,0.17684609]
[1641412185415,0.83807052,44960.0,44942.0,0.27956858]
[1641412185416,0.66728,44959.0,44942.0,0.27956858]
[1641412185617,0.63228,44959.0,44958.0,2.37]
[1641412185816,1.13228,44959.0,44958.0,2.89202355]
[1641412186018,0.82551265,44982.0,44972.0,0.00011]
[1641412186221,0.66701,44981.0,44973.0,0.26433863]
[1641412186419,0.66701,44981.0,44980.0,0.1]
[1641412186619,0.66701,44981.0,44963.0,0.00625534]
[1641412186823,0.72382511,44984.0,44959.0,0.44132802]
[1641412186824,0.62383511,44984.0,44978.0,2.57436617]
[1641412187020,0.72951265,44990.0,44983.0,2.27]
[1641412187323,0.52401644,44999.0,44992.0,0.005555]
[1641412187518,0.52401644,44999.0,44993.0,0.0376]
[1641412187759,0.52401644,44999.0,44982.0,0.05556]
[1641412187960,0.80358502,44999.0,44985.0,0.15946658]
[1641412188161,1.157,44998.0,44985.0,0.15946658]
[1641412188360,1.157,44998.0,44978.0,0.30436617]
[1641412188561,1.12375313,44998.0,44980.0,0.13132515]
[1641412188760,0.004,44999.0,44980.0,0.13132515]
[1641412188761,1.12375313,44996.0,44980.0,0.13132515]
[1641412188961,1.11375313,44996.0,44988.0,0.284127]
[1641412189163,4.916856,44995.0,44988.0,0.284127]
[1641412189362,4.866856,44995.0,44988.0,0.284127]
[1641412189563,4.866856,44994.0,44989.0,0.13914569]
[1641412189765,1.161,44999.0,44992.0,2.27]
[1641412189766,1.11878791,44999.0,44992.0,2.27]
[1641412189971,0.51980649,45016.0,44997.0,2.27]
[1641412190169,6.49e-06,45016.0,45001.0,0.362744]
[1641412190368,0.41682816,45035.0,45004.0,0.00690113]
[1641412190567,0.41682816,45035.0,45003.0,0.011105]
[1641412190568,0.41682816,45035.0,45028.0,0.13355349]
[1641412190763,0.41682816,45035.0,45031.0,0.20556284]
[1641412190962,0.2499,45044.0,45031.0,0.20556284]
[1641412190963,0.42082816,45039.0,45031.0,0.20556284]
[1641412191164,0.66615,45038.0,45032.0,0.24281537]
[1641412191622,0.93377124,45038.0,45032.0,0.24281537]
[1641412191825,0.62856,45038.0,45025.0,0.111007]
[1641412192022,0.62856,45038.0,45024.0,0.0376]
[1641412192023,1.98207158,45037.0,45018.0,0.166503]
[1641412192224,0.25728582,45036.0,45017.0,0.05552]
[1641412192422,0.62856,45038.0,45017.0,0.05552]
[1641412192423,0.042957,45035.0,45017.0,0.05552]
[1641412192726,0.62856,45038.0,45017.0,0.05552]
[1641412192920,0.62856,45038.0,45009.0,0.011104]
[1641412192921,0.43690308,45037.0,45022.0,0.25062969]
[1641412193126,0.042957,45036.0,45022.0,0.25062969]
[1641412194123,0.1,45037.0,45022.0,0.25062969]
[1641412194325,0.62856,45038.0,45026.0,0.00121345]
[1641412194526,0.62856,45038.0,45030.0,0.055503]
[1641412194527,0.23856,45038.0,45030.0,0.055503]
[1641412194728,0.004,45049.0,45034.0,0.362014]
[1641412194926,0.004,45049.0,45038.0,0.362014]
[1641412195127,0.004,45069.0,45056.0,0.16274967]
[1641412195370,0.003,45069.0,45066.0,0.20468195]
[1641412195565,0.003,45069.0,45068.0,0.00126023]
[1641412195764,0.003,45069.0,45068.0,1.76886023]
[1641412195962,1.4869,45074.0,45069.0,2.52196021]
[1641412196167,1.4869,45074.0,45073.0,2.76463407]
[1641412196364,1.4869,45074.0,45073.0,3.14631577]
[1641412196365,0.358,45074.0,45073.0,3.14631577]
[1641412196566,0.09179495,45086.0,45077.0,0.362014]
[1641412196767,0.09179495,45086.0,45085.0,0.00124234]
[1641412196966,0.09179495,45086.0,45085.0,0.36325634]
[1641412196967,0.08351495,45086.0,45085.0,0.36325634]
[1641412197267,0.08351495,45086.0,45080.0,0.01230271]
[1641412197268,5.41017195,45086.0,45080.0,0.01230271]
[1641412197466,0.042957,45085.0,45080.0,0.01230271]
[1641412197666,0.6654,45084.0,45080.0,0.01230271]
[1641412197873,0.042957,45083.0,45080.0,0.01230271]
[1641412198068,2.27,45080.0,45050.0,0.055468]
[1641412198271,2.27,45080.0,45053.0,0.24856415]
[1641412198272,0.703415,45079.0,45053.0,0.24856415]
[1641412198469,0.97042944,45079.0,45053.0,0.24856415]
[1641412198668,0.97042944,45079.0,45067.0,0.33061798]
[1641412198669,0.95042944,45079.0,45067.0,0.33061798]
[1641412198869,0.95042944,45079.0,45048.0,0.00124014]
[1641412198870,0.018005,45078.0,45048.0,0.00124014]
[1641412199115,0.018005,45078.0,45061.0,0.13701886]
[1641412199116,0.6654,45077.0,45061.0,0.13701886]
[1641412199317,0.6654,45077.0,45062.0,0.26701444]
[1641412199318,0.5654,45077.0,45062.0,0.26701444]
[1641412199716,0.5654,45077.0,45061.0,0.13701886]
[1641412199916,0.018005,45076.0,45074.0,0.29075301]
[1641412200115,0.08351495,45086.0,45074.0,0.29075301]
[1641412200116,0.5654,45075.0,45074.0,0.29075301]
[1641412200315,0.5654,45075.0,45070.0,0.00124975]
[1641412200520,0.018005,45074.0,45060.0,0.26701444]
[1641412200718,0.018005,45074.0,45021.0,0.01110752]
[1641412200719,0.26701444,45074.0,45021.0,0.01110752]
[1641412200923,0.12477541,45058.0,45036.0,0.13703332]
[1641412201119,0.055512,45053.0,45036.0,0.13703332]
[1641412201318,0.0376,45057.0,45037.0,0.861479]
[1641412201319,0.00128688,45038.0,45037.0,0.861479]
[1641412201523,0.3604,45038.0,45030.0,0.25627539]
[1641412201718,0.3604,45038.0,45031.0,0.27101444]
[1641412201918,0.3604,45038.0,45037.0,0.92]
[1641412202118,0.3604,45038.0,45037.0,0.361701]
[1641412202419,0.3604,45038.0,45021.0,0.004]
[1641412202420,0.018005,45034.0,45021.0,0.004]
[1641412202620,1.157,45028.0,45021.0,0.004]
[1641412202866,2.32,45036.0,45021.0,0.004]
[1641412202867,0.018005,45027.0,45021.0,0.004]
[1641412203068,1.07066172,45038.0,45021.0,0.004]
[1641412203069,0.3604,45026.0,45021.0,0.004]
[1641412203269,0.3604,45026.0,45022.0,0.0012421]
[1641412203468,0.3604,45026.0,45021.0,2.1e-06]
[1641412203469,1.63,45025.0,45021.0,2.1e-06]
[1641412203668,1.63,45025.0,45001.0,0.004]
[1641412203669,0.018005,45022.0,45001.0,0.004]
[1641412203869,0.493795,45021.0,44995.0,0.36066597]
[1641412204067,0.00126872,45012.0,44997.0,0.12719359]
[1641412204267,0.3604,45011.0,44995.0,0.36066597]
[1641412204469,0.3604,45011.0,44986.0,0.00011]
[1641412204470,0.055568,45007.0,44996.0,15.235225]
[1641412204670,0.111161,45004.0,44998.0,9.331582]
[1641412204874,0.15746555,44997.0,44996.0,13.290182]
[1641412205069,0.15746555,44997.0,44963.0,0.00011]
[1641412205070,2.59781555,44997.0,44963.0,0.00011]
[1641412205269,0.01686552,44961.0,44951.0,0.09467471]
[1641412205480,0.01686552,44961.0,44960.0,0.29598507]
[1641412205672,0.68400552,44961.0,44960.0,0.65768607]
[1641412205871,0.67140552,44961.0,44960.0,0.56299951]
[1641412206071,0.83807052,45007.0,44964.0,0.00011]
[1641412206270,0.00129193,44981.0,44969.0,0.02137517]
[1641412206523,0.0376,45003.0,44969.0,0.02137517]
[1641412206524,0.00127434,44982.0,44969.0,0.02137517]
[1641412206722,0.685035,44981.0,44969.0,0.02137517]
[1641412207025,0.680035,44981.0,44962.0,0.00120004]
[1641412207222,0.00129136,44976.0,44962.0,0.00120004]
[1641412207424,0.323202,44975.0,44965.0,0.32967513]
[1641412207625,0.07779,44995.0,44965.0,0.32967513]
[1641412207626,8.4e-07,44996.0,44972.0,0.1]
[1641412207830,0.059562,45019.0,45003.0,0.28669367]
[1641412207831,0.83807052,45010.0,45003.0,0.28669367]
[1641412208025,0.83807052,45010.0,45002.0,0.17409175]
[1641412208026,0.83807052,45010.0,45004.0,0.32303745]
[1641412208225,8.72e-06,45012.0,45004.0,0.37303745]
[1641412208423,0.00122984,45018.0,45012.0,0.17865512]
[1641412208624,0.66644,45017.0,45013.0,0.0376]
[1641412208825,0.28301681,45020.0,45018.0,0.13164471]
[1641412209024,0.78002417,45038.0,45022.0,0.362501]
[1641412209225,0.78002417,45038.0,45026.0,0.362501]
[1641412209226,0.01230472,45032.0,45026.0,0.362501]
[1641412209423,0.01230472,45032.0,45025.0,0.02881]
[1641412209424,0.2101,45037.0,45036.0,6.51905028]
[1641412209623,0.0376,45041.0,45036.0,5.72889028]
[1641412209824,0.07779,45044.0,45036.0,3.52909028]
[1641412209825,2.27,45037.0,45036.0,3.52909028]
[1641412210023,3.520134,45037.0,45036.0,1.95529218]
[1641412210272,3.520134,45037.0,45020.0,0.01692114]
[1641412210273,3.639346,45037.0,45018.0,0.24248112]
[1641412210465,0.1454614,45023.0,45018.0,0.24248112]
[1641412210973,0.1454614,45023.0,45018.0,0.73997112]
[1641412211166,3.939848,45022.0,45018.0,0.49749]
[1641412211364,0.017862,45021.0,45018.0,0.49749]
[1641412211570,1.117862,45021.0,45018.0,0.49749]
[1641412211764,0.14668473,45023.0,44983.0,0.00127746]
[1641412211765,0.01909837,45019.0,44983.0,0.00127746]
[1641412211965,0.01909837,45019.0,44981.0,0.004]
[1641412211966,0.1,45010.0,44981.0,0.004]
[1641412212167,1.06654,45018.0,44981.0,0.004]
[1641412212168,0.2,44999.0,44981.0,0.004]
[1641412212366,0.31227276,44995.0,44982.0,0.22231]
[1641412212565,0.31227276,44995.0,44958.0,0.00011]
[1641412212566,1.0,44981.0,44958.0,0.00011]
[1641412212765,1.802436,44992.0,44958.0,0.00011]
[1641412212766,1.157,44979.0,44958.0,0.00011]
[1641412212965,0.2487,44992.0,44962.0,0.00126023]
[1641412212966,0.017862,44975.0,44962.0,0.00126023]
[1641412213269,0.017862,44975.0,44946.0,0.00011]
[1641412213270,0.19417071,44961.0,44946.0,0.00011]
[1641412213469,0.78177,44960.0,44946.0,0.00011]
[1641412213765,0.78177,44960.0,44933.0,0.00011]
[1641412213766,2.27,44954.0,44926.0,0.00011]
[1641412214018,2.27,44954.0,44920.0,9.00011]
[1641412214019,0.00124323,44940.0,44920.0,9.00011]
[1641412214219,0.055681,44927.0,44920.0,9.00011]
[1641412214419,0.05568,44925.0,44920.0,8.00142]
[1641412214615,1.86098,44924.0,44920.0,7.06253948]
[1641412214815,1.82338,44924.0,44921.0,0.26701444]
[1641412215017,0.0115987,44938.0,44922.0,0.362035]
[1641412215216,0.222662,44950.0,44937.0,0.15846377]
[1641412215217,1.15824532,44939.0,44937.0,0.15846377]
[1641412215417,0.266562,44938.0,44937.0,0.15846377]
[1641412215622,0.2487,44938.0,44937.0,0.35766193]
[1641412215818,0.01230795,44943.0,44937.0,0.52108055]
[1641412216021,0.01230795,44943.0,44937.0,3.20677677]
[1641412216217,0.001206,44950.0,44938.0,0.742838]
[1641412216421,0.0376,44949.0,44938.0,1.103853]
[1641412216620,0.26701444,44955.0,44938.0,2.114652]
[1641412216621,1.1946,44948.0,44938.0,2.114652]
[1641412216818,0.0999,44942.0,44938.0,2.057221]
[1641412217018,0.1375,44941.0,44938.0,0.543776]
[1641412217217,0.1375,44941.0,44916.0,0.0225591]
[1641412217218,2.655296,44940.0,44939.0,1.891708]
[1641412217420,2.655296,44940.0,44920.0,5.358781]
[1641412217421,0.167078,44933.0,44920.0,5.358781]
[1641412217619,0.15051737,44929.0,44920.0,3.369175]
[1641412217865,0.14124158,44921.0,44920.0,2.270675]
[1641412218066,0.14124158,44921.0,44903.0,0.14600533]
[1641412218067,1.57,44920.0,44903.0,0.14600533]
[1641412218263,0.111389,44917.0,44915.0,0.48730809]
[1641412218464,0.055695,44922.0,44915.0,0.48730809]
[1641412218465,0.0774818,44923.0,44916.0,0.36701444]
[1641412218669,1.364e-05,44939.0,44923.0,0.1821]
[1641412218864,0.62401973,44958.0,44931.0,0.0012864]
[1641412218865,0.65,44954.0,44931.0,0.0012864]
[1641412219062,0.66752,44953.0,44938.0,0.00123658]
[1641412219263,0.66752,44953.0,44952.0,1.77]
[1641412219463,0.66752,44953.0,44943.0,0.00129346]
[1641412219464,0.93453444,44953.0,44943.0,0.00129346]
[1641412219668,0.93453444,44953.0,44930.0,0.00123217]
[1641412219669,0.66752,44953.0,44930.0,0.00123217]
[1641412219866,0.573227,44952.0,44936.0,0.00122567]
[1641412220064,0.53122686,44962.0,44938.0,0.1]
[1641412220065,0.66752,44951.0,44938.0,0.1]
[1641412220269,0.66752,44951.0,44937.0,0.1376]
[1641412220270,0.53122686,44962.0,44943.0,0.1474292]
[1641412220465,0.13333205,44965.0,44952.0,0.1]
[1641412220466,0.004,44959.0,44952.0,0.1]
[1641412220667,0.004,44979.0,44958.0,0.10123764]
[1641412220668,0.13329497,44969.0,44958.0,0.10123764]
[1641412220874,0.53122686,44984.0,44967.0,0.1]
[1641412221066,0.2499,44983.0,44968.0,0.30461444]
[1641412221270,0.2499,44983.0,44969.0,0.01861621]
[1641412221538,0.00555555,44968.0,44967.0,0.0003102]
[1641412221724,1.47,44967.0,44950.0,0.32694021]
[1641412221924,2.57903955,44968.0,44955.0,0.00127882]
[1641412222125,2.57903955,44968.0,44962.0,0.0012588]
[1641412222126,0.00555555,44968.0,44962.0,0.0012588]
[1641412222324,0.00424698,44968.0,44963.0,0.362035]
[1641412222526,0.055613,44974.0,44950.0,0.26758042]
[1641412222826,0.2101,44963.0,44950.0,0.26758042]
[1641412223327,0.2101,44963.0,44951.0,0.03880199]
[1641412223526,0.2101,44963.0,44955.0,0.17027127]
[1641412223527,2.851888,44962.0,44955.0,0.17027127]
[1641412223727,3.386188,44962.0,44956.0,0.0376]
[1641412223930,3.386188,44962.0,44953.0,0.13783082]
[1641412223931,5.811957,44962.0,44953.0,0.13783082]
[1641412224125,0.2101,44963.0,44953.0,0.13783082]
[1641412224326,0.2101,44963.0,44949.0,0.13331216]
[1641412224526,0.00123599,44961.0,44944.0,0.13331567]
[1641412224725,0.00123599,44961.0,44942.0,0.00128656]
[1641412224930,0.00124888,44950.0,44934.0,0.13332984]
[1641412225125,0.00124888,44950.0,44931.0,0.0052245]
[1641412225365,0.00127647,44943.0,44930.0,0.14751423]
[1641412225767,0.00127647,44943.0,44930.0,0.16427858]
[1641412225964,0.00124872,44935.0,44930.0,0.16427858]
[1641412226166,0.66761,44934.0,44930.0,0.16427858]
[1641412226365,0.66761,44934.0,44924.0,0.1333378]
[1641412226568,0.66761,44934.0,44928.0,0.23939745]
[1641412226765,0.66761,44934.0,44924.0,0.1333378]
[1641412226964,0.66761,44934.0,44901.0,0.0148554]
[1641412226965,0.66761,44934.0,44921.0,0.13736458]
[1641412227166,0.66761,44934.0,44911.0,0.26701444]
[1641412227167,0.00129786,44927.0,44911.0,0.26701444]
[1641412227367,0.00129786,44927.0,44908.0,0.0012724]
[1641412227368,0.66761,44926.0,44924.0,1.106488]
[1641412227564,0.66761,44926.0,44912.0,3.899538]
[1641412227763,0.66761,44926.0,44905.0,0.00122325]
[1641412227764,0.07570617,44922.0,44905.0,0.25046512]
[1641412227965,0.07570617,44922.0,44899.0,1.25853164]
[1641412227966,0.12715775,44919.0,44899.0,1.25853164]
[1641412228166,0.25421027,44918.0,44906.0,2.28118]
[1641412228367,0.65767,44917.0,44900.0,1.1542]
[1641412228566,0.30987184,44916.0,44888.0,0.00011]
[1641412228767,0.30987184,44916.0,44885.0,0.1672497]
[1641412228768,0.17730677,44907.0,44885.0,0.1672497]
[1641412229019,0.055711,44889.0,44882.0,0.14254]
[1641412229219,0.111421,44894.0,44882.0,0.13765]
[1641412229418,0.65767,44893.0,44883.0,4.41215544]
[1641412229618,0.65767,44893.0,44887.0,0.00011]
[1641412229820,0.65767,44893.0,44891.0,0.362523]
[1641412229821,0.65367,44893.0,44891.0,0.362523]
[1641412230017,0.65367,44893.0,44892.0,1.99608817]
[1641412230224,0.65367,44893.0,44892.0,1.65463975]
[1641412230420,0.65367,44893.0,44892.0,0.362523]
[1641412230617,0.63856727,44893.0,44892.0,1.774763]
[1641412230820,0.63856727,44893.0,44892.0,1.248536]
[1641412231020,0.63856727,44893.0,44892.0,0.984199]
[1641412231220,2.47856727,44893.0,44892.0,0.274714]
[1641412231422,2.47856727,44893.0,44888.0,0.14252]
[1641412231423,0.83,44892.0,44888.0,0.13999]
[1641412231618,0.83,44892.0,44888.0,0.13702]
[1641412231619,0.0012578,44889.0,44888.0,0.13702]
[1641412231822,0.0012578,44889.0,44882.0,0.00011]
[1641412231823,0.63982507,44889.0,44882.0,0.00011]
[1641412232019,0.63982507,44889.0,44882.0,0.00022]
[1641412232225,0.00127656,44886.0,44882.0,0.00022]
[1641412232420,0.63856727,44885.0,44882.0,0.00022]
[1641412232877,0.63856727,44885.0,44884.0,3.911153]
[1641412232878,0.63356727,44885.0,44884.0,3.911153]
[1641412233071,0.63356727,44885.0,44884.0,0.409078]
[1641412233276,0.62856727,44885.0,44884.0,1.350007]
[1641412233473,0.62856727,44885.0,44884.0,0.110007]
[1641412233673,0.62856727,44885.0,44883.0,0.21793466]
[1641412234072,0.62856727,44885.0,44883.0,0.21782466]
[1641412234275,0.62856727,44885.0,44882.0,0.00022]
[1641412234478,0.00129628,44884.0,44882.0,0.00022]
[1641412234875,0.62856727,44883.0,44882.0,0.00022]
[1641412235275,0.62856727,44883.0,44882.0,0.21164123]
[1641412235577,0.99255927,44883.0,44882.0,0.21164123]
[1641412235776,0.58534927,44883.0,44882.0,0.00022]
[1641412235980,0.055713,44893.0,44882.0,0.00022]
[1641412235981,0.53122686,44908.0,44885.0,0.362523]
[1641412236276,0.00125793,44904.0,44890.0,0.00128281]
[1641412236521,0.00125793,44904.0,44891.0,0.36317]
[1641412237026,0.15244833,44898.0,44897.0,0.77839602]
[1641412237222,0.15244833,44898.0,44897.0,1.12179452]
[1641412237424,0.82063833,44898.0,44897.0,0.36317]
[1641412237622,0.82063833,44898.0,44892.0,0.36814382]
[1641412237822,0.82063833,44898.0,44894.0,0.32429132]
[1641412238023,0.82063833,44898.0,44892.0,0.36814382]
[1641412238222,0.80825,44898.0,44894.0,0.14038839]
[1641412239024,0.78325,44898.0,44897.0,2.54278755]
[1641412239224,0.74855,44898.0,44897.0,2.907201]
[1641412239424,0.68055,44898.0,44897.0,1.067201]
[1641412239629,0.66819,44898.0,44897.0,1.067201]
[1641412239825,0.66819,44898.0,44897.0,3.037201]
[1641412240024,0.00124119,44915.0,44898.0,2.28]
[1641412240291,0.01238789,44925.0,44904.0,0.00126889]
[1641412240486,0.01238789,44925.0,44910.0,0.00128521]
[1641412240487,0.54484177,44925.0,44910.0,0.00128521]
[1641412240686,0.2051,44924.0,44910.0,0.00128521]
[1641412240887,0.34818052,44923.0,44910.0,0.00128521]
[1641412241084,0.34818052,44923.0,44884.0,0.00366]
[1641412241085,0.099824,44919.0,44884.0,0.00366]
[1641412241288,0.099824,44919.0,44882.0,1.27986151]
[1641412241289,0.00120139,44898.0,44882.0,1.27986151]
[1641412241483,0.099824,44919.0,44882.0,1.27986151]
[1641412241484,0.00129472,44905.0,44893.0,0.12777768]
[1641412241886,0.00129472,44905.0,44903.0,0.23111559]
[1641412242083,0.66809,44904.0,44903.0,0.23111559]
[1641412242286,0.767914,44904.0,44893.0,0.12777768]
[1641412242484,0.00128985,44899.0,44893.0,0.01238759]
[1641412242685,0.66809,44898.0,44893.0,0.01238759]
[1641412242886,0.094824,44894.0,44893.0,0.01238759]
[1641412243086,0.094824,44894.0,44893.0,0.00818759]
[1641412243087,0.762914,44894.0,44893.0,0.00818759]
[1641412243285,0.7641168,44894.0,44893.0,0.21387465]
[1641412243485,0.7641168,44894.0,44893.0,0.00818759]
[1641412244342,0.7641168,44894.0,44888.0,0.00035895]
[1641412244742,0.66809,44894.0,44888.0,0.00035895]
[1641412244944,0.66809,44894.0,44889.0,0.0376]
[1641412245142,6.38e-06,44909.0,44893.0,0.36436796]
[1641412245344,0.50622686,44911.0,44904.0,0.00121901]
[1641412245545,0.62524636,44913.0,44904.0,0.00121901]
[1641412245546,0.62524636,44913.0,44912.0,0.00125215]
[1641412245743,0.00122663,44913.0,44912.0,0.00125215]
[1641412245946,0.00122663,44913.0,44888.0,0.00035895]
[1641412246143,0.2,44908.0,44888.0,0.00035895]
[1641412246341,0.094834,44909.0,44888.0,0.00035895]
[1641412246342,0.094834,44904.0,44888.0,0.00035895]
[1641412246542,0.294834,44900.0,44888.0,0.00035895]
[1641412246742,0.13739803,44898.0,44884.0,0.2656626]
[1641412246943,0.763044,44897.0,44888.0,0.23163098]
[1641412247143,0.663925,44897.0,44889.0,1.11]
[1641412247343,0.00122695,44894.0,44889.0,1.11]
[1641412247544,0.00122695,44894.0,44888.0,0.23163098]
[1641412247789,0.00122695,44894.0,44878.0,1.30227046]
[1641412247981,0.00122695,44894.0,44872.0,0.25006328]
[1641412247982,1.57,44884.0,44872.0,0.25006328]
[1641412248181,0.055735,44879.0,44872.0,0.25006328]
[1641412248381,0.758759,44878.0,44872.0,0.00016328]
[1641412248777,0.663925,44878.0,44874.0,0.13296106]
[1641412248978,0.663925,44878.0,44876.0,0.15593148]
[1641412249280,0.663925,44878.0,44872.0,0.00016328]
[1641412249478,1.2,44875.0,44865.0,0.00033]
[1641412249678,1.2,44875.0,44851.0,0.25257652]
[1641412249679,0.2,44873.0,44851.0,0.00422]
[1641412249880,0.055763,44864.0,44851.0,0.00422]
[1641412250080,2.02,44867.0,44851.0,0.00422]
[1641412250081,0.00128617,44861.0,44851.0,0.00422]
[1641412250278,1.357,44856.0,44850.0,0.2974065]
[1641412250477,0.150608,44852.0,44844.0,0.19795584]
[1641412250679,0.094834,44851.0,44844.0,0.19795584]
[1641412250878,0.055774,44853.0,44844.0,0.19795584]
[1641412250879,0.663925,44850.0,44844.0,0.19795584]
[1641412251077,0.663925,44850.0,44847.0,2.906767]
[1641412251278,0.663925,44850.0,44847.0,0.15563]
[1641412251519,0.150596,44849.0,44844.0,0.19795584]
[1641412251914,0.663925,44848.0,44844.0,0.0292084]
[1641412252114,0.094834,44847.0,44845.0,0.0176529]
[1641412252320,0.66515329,44848.0,44832.0,0.00033]
[1641412252321,0.758759,44846.0,44832.0,0.00033]
[1641412252519,0.758759,44846.0,44783.0,0.32462881]
[1641412252520,0.663925,44846.0,44831.0,0.00128717]
[1641412252720,0.66515319,44846.0,44831.0,0.00128717]
[1641412252915,0.66515319,44846.0,44843.0,0.14496427]
[1641412253117,0.00124505,44855.0,44844.0,0.22946091]
[1641412253316,0.055757,44863.0,44844.0,0.22946091]
[1641412253317,0.05,44874.0,44852.0,0.00129546]
[1641412253517,0.055741,44867.0,44845.0,0.24835652]
[1641412253815,0.055741,44867.0,44844.0,0.22946091]
[1641412253816,0.00128049,44861.0,44850.0,0.25250898]
[1641412254017,0.13473788,44861.0,44851.0,0.16411837]
[1641412254217,0.13473656,44861.0,44854.0,0.24056821]
[1641412254419,0.00127627,44855.0,44853.0,0.00026845]
[1641412254618,1.534834,44854.0,44853.0,0.00026845]
[1641412254819,0.74,44853.0,44845.0,0.0003629]
[1641412255018,0.00126398,44857.0,44845.0,0.0003629]
[1641412255019,0.763674,44852.0,44845.0,0.0003629]
[1641412255464,0.763674,44852.0,44850.0,0.16763079]
[1641412255465,0.66884,44852.0,44850.0,0.16763079]
[1641412255665,0.66884,44852.0,44850.0,0.66]
[1641412255862,0.66884,44852.0,44849.0,0.1655446]
[1641412256061,0.094834,44851.0,44846.0,0.21728211]
[1641412256263,0.66884,44850.0,44846.0,0.21728211]
[1641412256465,0.29292865,44848.0,44846.0,0.21728211]
[1641412256662,0.29292865,44848.0,44845.0,0.0003629]
[1641412256663,2.00491857,44847.0,44845.0,0.0003629]
[1641412256863,1.78604285,44846.0,44845.0,0.0003629]
[1641412257064,0.76488285,44846.0,44831.0,0.00123112]
[1641412257264,0.67004885,44846.0,44840.0,0.0122731]
[1641412257467,0.00122834,44841.0,44840.0,0.0122731]
[1641412257664,0.763674,44841.0,44840.0,0.7022731]
[1641412257967,0.61884,44841.0,44840.0,0.0122731]